[Event "7th Iberoamerican-ch 2019"]
[Site "Linares"]
[Date "2019.08.12"]
[Round "3.29"]
[White "Vega Gutierrez, Belinda"]
[Black "Cruz Ravina, Francisco Javier"]
[Result "0-1"]
[ECO "B02"]
[WhiteElo "2133"]
[BlackElo "2363"]
[Annotator "NA"]
[PlyCount "96"]
[EventDate "2019.08.10"]
[EventType "swiss"]
[EventCountry "ESP"]
[SourceTitle "playchess.com"]
[Source "ChessBase"]
[SourceQuality "1"]
[TimeControl "5400+30"]

1. e4 {[%emt 0:00:00]} Nf6 {[%emt 0:00:15]} 2. e5 {[%emt 0:04:58]} Nd5 {[%emt 0:00:31]} 3. c4 {[%emt 0:00:52]} Nb6 {[%emt 0:00:25]} 4. c5 {[%emt 0:00:31]} Nd5 {[%emt 0:00:12]} 5. Bc4 {[%emt 0:00:08]} e6 {[%emt 0:01:21]} 6. d4 {[%emt 0:01:17]} d6 {[%emt 0:00:40]} 7. cxd6 {[%emt 0:08:26]} cxd6 {[%emt 0:00:07]} 8. Nf3 {[%emt 0:01:56]} Be7 {[%emt 0:15:36]} 9. O-O {[%emt 0:01:11]} O-O {[%emt 0:00:26]} 10. Qb3 {[%emt 0:07:50]} Nc6 {[%emt 0:13:58]} 11. Bxd5 {[%emt 0:10:38]} exd5 {[%emt 0:07:09]} 12. Nc3 {[%emt 0:00:36]} dxe5 {[%emt 0:04:03]} 13. dxe5 {[%emt 0:07:01]} d4 {[%emt 0:01:13]} 14. Nd5 {[%emt 0:01:57]} Be6 {[%emt 0:02:15]} 15. Nxe7+ {[%emt 0:00:32]} Qxe7 {[%emt 0:00:11]} 16. Qa4 {[%emt 0:03:43]} Qc5 {[%emt 0:03:07]} 17. Bf4 {[%emt 0:06:08]} Qd5 {[%emt 0:01:41]} 18. Rfe1 {[%emt 0:11:14]} Rfd8 {[%emt 0:03:44]} 19. Nd2 {[%emt 0:06:50]} Bf5 {[%emt 0:09:00]} 20. Qc4 {[%emt 0:12:52]} Qd7 {[%emt 0:02:55]} 21. Ne4 {[%emt 0:02:05]} Bxe4 {[%emt 0:02:08]} 22. Rxe4 {[%emt 0:00:01]} Qd5 {[%emt 0:01:20]} 23. Qxd5 {[%emt 0:00:37]} Rxd5 {[%emt 0:00:10]} 24. Rd1 {[%emt 0:00:28]} Rad8 {[%emt 0:02:05]} 25. f3 {[%emt 0:00:56]} Ra5 {[%emt 0:07:20]} 26. a3 {[%emt 0:00:39]} Rb5 {[%emt 0:00:37]} 27. Rd2 {[%emt 0:00:49]} Rb3 {[%emt 0:00:32]} 28. Kf2 {[%emt 0:00:57]} Rd5 {[%emt 0:01:10]} 29. e6 {[%emt 0:05:32]} fxe6 {[%emt 0:00:22]} 30. Rxe6 {[%emt 0:00:02]} Kf7 {[%emt 0:00:17]} 31. Re4 {[%emt 0:00:51]} Rdb5 {[%emt 0:09:39]} 32. Ree2 {[%emt 0:00:02]} g5 {[%emt 0:02:38]} 33. Bc7 {[%emt 0:00:08]} d3 {[%emt 0:03:47]} 34. Re3 {[%emt 0:00:02]} Rd5 {[%emt 0:00:25]} 35. g4 {[%emt 0:01:27]} b5 {[%emt 0:02:50]} 36. h3 {[%emt 0:00:35]} h6 {[%emt 0:00:28]} 37. f4 {[%emt 0:01:01]} gxf4 {[%emt 0:00:49]} 38. Bxf4 {[%emt 0:00:03]} Na5 {[%emt 0:00:23]} 39. Rf3 {[%emt 0:02:12]} Kg6 {[%emt 0:01:44]} 40. Kg3 {[%emt 0:00:17]} Nc4 {[%emt 0:00:38]} 41. Rd1 {[%emt 0:00:46]} a5 {[%emt 0:00:37]} 42. Rdf1 {[%emt 0:01:53]} a4 {[%emt 0:00:52]} 43. Bd2 {[%emt 0:00:46]} Rd6 {[%emt 0:00:23]} 44. Bb4 {[%emt 0:00:32]} Rxb4 {[%emt 0:00:39]} 45. axb4 {[%emt 0:00:01]} d2 {[%emt 0:00:08]} 46. h4 {[%emt 0:01:00]} Rd7 {[%emt 0:00:52]} 47. Rf6+ {[%emt 0:00:34]} Kg7 {[%emt 0:00:18]} 48. R6f5 {[%emt 0:00:21]} Ne3 {[%emt 0:00:25]} 0-1

[Event "7th Iberoamerican-ch 2019"]
[Site "Linares"]
[Date "2019.08.12"]
[Round "3.31"]
[White "Moreno Bello, Miguel"]
[Black "Perez Garcia, Alejandro"]
[Result "0-1"]
[ECO "C41"]
[WhiteElo "1544"]
[BlackElo "2347"]
[Annotator "NA"]
[PlyCount "94"]
[EventDate "2019.08.10"]
[EventType "swiss"]
[EventCountry "ESP"]
[SourceTitle "playchess.com"]
[Source "ChessBase"]
[SourceQuality "1"]
[TimeControl "5400+30"]

1. e4 {[%emt 0:00:00]} d6 {[%emt 0:00:05]} 2. d4 {[%emt 0:00:00]} Nf6 {[%emt 0:00:09]} 3. Nc3 {[%emt 0:00:00]} e5 {[%emt 0:00:20]} 4. Nf3 {[%emt 0:00:16]} Nbd7 {[%emt 0:00:21]} 5. Bc4 {[%emt 0:00:17]} Be7 {[%emt 0:00:04]} 6. Bxf7+ {[%emt 0:00:15]} Kxf7 {[%emt 0:00:05]} 7. Ng5+ {[%emt 0:00:09]} Kg8 {[%emt 0:00:05]} 8. Ne6 {[%emt 0:00:18]} Qe8 {[%emt 0:00:04]} 9. Nxc7 {[%emt 0:00:33]} Qg6 {[%emt 0:00:02]} 10. Nxa8 {[%emt 0:04:22]} Qxg2 {[%emt 0:00:07]} 11. Rf1 {[%emt 0:00:09]} b5 {[%emt 0:02:32]} 12. Qe2 {[%emt 0:25:18]} exd4 {[%emt 0:15:07]} 13. f3 {[%emt 0:07:07]} Qh3 {[%emt 0:02:05]} 14. Nxb5 {[%emt 0:10:41]} Ne5 {[%emt 0:04:14]} 15. Nxd4 {[%emt 0:09:15]} Nh5 {[%emt 0:23:57]} 16. Be3 {[%emt 0:02:20]} Bh4+ {[%emt 0:02:10]} 17. Kd2 {[%emt 0:00:17]} h6 {[%emt 0:01:40]} 18. Nc7 {[%emt 0:03:34]} Kh7 {[%emt 0:02:45]} 19. Nd5 {[%emt 0:02:46]} Rf8 {[%emt 0:03:06]} 20. Rad1 {[%emt 0:02:53]} a5 {[%emt 0:22:39]} 21. Kc1 {[%emt 0:02:16]} a4 {[%emt 0:00:36]} 22. a3 {[%emt 0:04:50]} Bd7 {[%emt 0:08:41]} 23. Nb6 {[%emt 0:00:52]} Rb8 {[%emt 0:02:38]} 24. Nxd7 {[%emt 0:01:20]} Qxd7 {[%emt 0:00:05]} 25. Kb1 {[%emt 0:05:26]} Qb7 {[%emt 0:03:04]} 26. Bc1 {[%emt 0:00:52]} Bg5 {[%emt 0:00:58]} 27. c3 {[%emt 0:01:17]} Bxc1 {[%emt 0:02:01]} 28. Kxc1 {[%emt 0:02:25]} Nf4 {[%emt 0:01:23]} 29. Qc2 {[%emt 0:01:08]} Nc4 {[%emt 0:00:21]} 30. e5+ {[%emt 0:01:13]} Kh8 {[%emt 0:00:44]} 31. Rf2 {[%emt 0:05:34]} Ne3 {[%emt 0:02:07]} 32. Qe4 {[%emt 0:01:11]} Nxd1 {[%emt 0:00:16]} 33. Qxb7 {[%emt 0:00:18]} Nd3+ {[%emt 0:00:21]} 34. Kxd1 {[%emt 0:01:11]} Nxf2+ {[%emt 0:00:03]} 35. Kc2 {[%emt 0:02:01]} Rxb7 {[%emt 0:00:06]} 36. exd6 {[%emt 0:00:25]} Rb6 {[%emt 0:02:22]} 37. Nf5 {[%emt 0:01:46]} Kh7 {[%emt 0:00:34]} 38. c4 {[%emt 0:00:23]} g6 {[%emt 0:00:27]} 39. c5 {[%emt 0:00:36]} Rc6 {[%emt 0:00:28]} 40. Ne7 {[%emt 0:01:13]} Rxc5+ {[%emt 0:00:06]} 41. Kd2 {[%emt 0:00:17]} Rc4 {[%emt 0:00:30]} 42. Ke3 {[%emt 0:00:29]} Nd1+ {[%emt 0:00:04]} 43. Ke2 {[%emt 0:01:30]} Rd4 {[%emt 0:00:15]} 44. Nc8 {[%emt 0:00:39]} Kg7 {[%emt 0:00:27]} 45. f4 {[%emt 0:01:02]} Kf6 {[%emt 0:00:34]} 46. h4 {[%emt 0:00:31]} h5 {[%emt 0:00:09]} 47. b4 {[%emt 0:01:14]} axb3 {[%emt 0:00:06]} 0-1

[Event "7th Iberoamerican-ch 2019"]
[Site "Linares"]
[Date "2019.08.12"]
[Round "3.32"]
[White "Paiva, Henrique M A Alberga"]
[Black "Domingo Nunez, Ruben"]
[Result "0-1"]
[ECO "B40"]
[WhiteElo "2122"]
[BlackElo "2318"]
[Annotator "NA"]
[PlyCount "86"]
[EventDate "2019.08.10"]
[EventType "swiss"]
[EventCountry "ESP"]
[SourceTitle "playchess.com"]
[Source "ChessBase"]
[SourceQuality "1"]
[TimeControl "5400+30"]

1. e4 {[%emt 0:06:51]} c5 {[%emt 0:00:07]} 2. Nf3 {[%emt 0:00:06]} e6 {[%emt 0:00:04]} 3. b3 {[%emt 0:00:41]} b6 {[%emt 0:00:05]} 4. Bb2 {[%emt 0:00:16]} Bb7 {[%emt 0:00:04]} 5. Nc3 {[%emt 0:02:44]} a6 {[%emt 0:00:21]} 6. d4 {[%emt 0:09:18]} cxd4 {[%emt 0:00:05]} 7. Nxd4 {[%emt 0:00:04]} Nc6 {[%emt 0:13:58]} 8. Nxc6 {[%emt 0:01:12]} Bxc6 {[%emt 0:00:29]} 9. Bd3 {[%emt 0:00:20]} Qc7 {[%emt 0:04:18]} 10. Qe2 {[%emt 0:04:42]} Bb7 {[%emt 0:29:45]} 11. O-O-O {[%emt 0:05:56]} Bd6 {[%emt 0:07:07]} 12. Kb1 {[%emt 0:02:27]} Ne7 {[%emt 0:02:11]} 13. Qh5 {[%emt 0:22:11]} Ng6 {[%emt 0:07:28]} 14. Ne2 {[%emt 0:00:23]} Be5 {[%emt 0:00:54]} 15. c3 {[%emt 0:00:29]} O-O {[%emt 0:19:38]} 16. g3 {[%emt 0:05:45]} d5 {[%emt 0:01:07]} 17. exd5 {[%emt 0:01:15]} Bxd5 {[%emt 0:00:08]} 18. Rhe1 {[%emt 0:00:07]} Bf6 {[%emt 0:00:42]} 19. f4 {[%emt 0:03:39]} Qc6 {[%emt 0:00:59]} 20. f5 {[%emt 0:05:49]} Bf3 {[%emt 0:03:07]} 21. Qh3 {[%emt 0:00:11]} exf5 {[%emt 0:00:48]} 22. Qxf5 {[%emt 0:00:31]} Rad8 {[%emt 0:01:26]} 23. Nd4 {[%emt 0:05:38]} Bxd4 {[%emt 0:00:28]} 24. cxd4 {[%emt 0:00:05]} Bxd1 {[%emt 0:00:46]} 25. Rxd1 {[%emt 0:00:04]} b5 {[%emt 0:02:07]} 26. h4 {[%emt 0:02:10]} Qe6 {[%emt 0:02:05]} 27. Qf3 {[%emt 0:04:45]} Rfe8 {[%emt 0:00:28]} 28. h5 {[%emt 0:00:11]} Nf8 {[%emt 0:01:33]} 29. d5 {[%emt 0:02:26]} Qh6 {[%emt 0:01:25]} 30. Qf5 {[%emt 0:09:16]} Rd7 {[%emt 0:00:33]} 31. Bc1 {[%emt 0:01:35]} Qf6 {[%emt 0:00:32]} 32. Qg4 {[%emt 0:00:32]} Re5 {[%emt 0:00:38]} 33. Bb2 {[%emt 0:00:36]} Qg5 {[%emt 0:00:15]} 34. Qxg5 {[%emt 0:02:36]} Rxg5 {[%emt 0:00:01]} 35. Be4 {[%emt 0:00:34]} f5 {[%emt 0:00:39]} 36. Bc1 {[%emt 0:00:28]} Rxh5 {[%emt 0:00:33]} 37. Bf3 {[%emt 0:00:05]} Rh3 {[%emt 0:00:26]} 38. d6 {[%emt 0:00:08]} Rxg3 {[%emt 0:00:15]} 39. Bd5+ {[%emt 0:00:43]} Kh8 {[%emt 0:00:01]} 40. Bf4 {[%emt 0:00:07]} Rg6 {[%emt 0:00:21]} 41. Bc6 {[%emt 0:01:46]} Rd8 {[%emt 0:00:00]} 42. Rd5 {[%emt 0:00:19]} Nd7 {[%emt 0:02:29]} 43. Bd2 {[%emt 0:01:26]} Nb6 {[%emt 0:00:28]} 0-1

[Event "7th Iberoamerican-ch 2019"]
[Site "Linares"]
[Date "2019.08.12"]
[Round "3.33"]
[White "Castillo Gallego, Sergio"]
[Black "Guerrero Vargas, Andres Jesus"]
[Result "0-1"]
[ECO "B47"]
[WhiteElo "2203"]
[BlackElo "2331"]
[Annotator "NA"]
[PlyCount "84"]
[EventDate "2019.08.10"]
[EventType "swiss"]
[EventCountry "ESP"]
[SourceTitle "playchess.com"]
[Source "ChessBase"]
[SourceQuality "1"]
[TimeControl "5400+30"]

1. e4 {[%emt 0:02:06]} c5 {[%emt 0:00:00]} 2. Nf3 {[%emt 0:00:22]} e6 {[%emt 0:00:00]} 3. d4 {[%emt 0:00:16]} cxd4 {[%emt 0:00:00]} 4. Nxd4 {[%emt 0:00:06]} Nc6 {[%emt 0:00:00]} 5. Nc3 {[%emt 0:00:22]} Qc7 {[%emt 0:00:00]} 6. Qd3 {[%emt 0:00:12]} Nf6 {[%emt 0:07:07]} 7. Ndb5 {[%emt 0:00:24]} Qb8 {[%emt 0:00:02]} 8. Qg3 {[%emt 0:00:18]} d6 {[%emt 0:00:02]} 9. Be3 {[%emt 0:00:17]} a6 {[%emt 0:00:29]} 10. Nd4 {[%emt 0:00:02]} Bd7 {[%emt 0:00:41]} 11. f4 {[%emt 0:00:31]} b5 {[%emt 0:00:29]} 12. Bd3 {[%emt 0:00:10]} Be7 {[%emt 0:02:46]} 13. O-O {[%emt 0:04:25]} b4 {[%emt 0:03:27]} 14. Nce2 {[%emt 0:02:50]} O-O {[%emt 0:00:15]} 15. Rae1 {[%emt 0:18:48]} Re8 {[%emt 0:22:47]} 16. Kh1 {[%emt 0:08:52]} Qc7 {[%emt 0:10:24]} 17. Ng1 {[%emt 0:18:08]} g6 {[%emt 0:07:57]} 18. Nh3 {[%emt 0:09:02]} Nh5 {[%emt 0:13:05]} 19. Qf3 {[%emt 0:04:19]} Bf6 {[%emt 0:02:15]} 20. Qf2 {[%emt 0:06:33]} Nxd4 {[%emt 0:03:51]} 21. Bxd4 {[%emt 0:00:04]} Bxd4 {[%emt 0:00:20]} 22. Qxd4 {[%emt 0:00:03]} e5 {[%emt 0:00:07]} 23. fxe5 {[%emt 0:04:32]} dxe5 {[%emt 0:00:10]} 24. Qc4 {[%emt 0:01:46]} Qxc4 {[%emt 0:01:31]} 25. Bxc4 {[%emt 0:00:02]} Be6 {[%emt 0:06:11]} 26. Bxe6 {[%emt 0:06:03]} Rxe6 {[%emt 0:00:18]} 27. Ng5 {[%emt 0:04:33]} Rf6 {[%emt 0:00:11]} 28. Nf3 {[%emt 0:02:54]} Rc8 {[%emt 0:03:15]} 29. g4 {[%emt 0:01:21]} Nf4 {[%emt 0:00:45]} 30. Nxe5 {[%emt 0:02:28]} Rxc2 {[%emt 0:01:28]} 31. Rc1 {[%emt 0:02:33]} Rxc1 {[%emt 0:02:09]} 32. Rxc1 {[%emt 0:00:06]} Re6 {[%emt 0:01:28]} 33. Rc5 {[%emt 0:01:05]} Rd6 {[%emt 0:05:08]} 34. h4 {[%emt 0:00:27]} Ne6 {[%emt 0:01:25]} 35. Rc8+ {[%emt 0:00:20]} Kg7 {[%emt 0:00:03]} 36. Ra8 {[%emt 0:00:48]} Rd4 {[%emt 0:04:10]} 37. Rxa6 {[%emt 0:00:35]} Rxe4 {[%emt 0:00:12]} 38. Ra5 {[%emt 0:00:24]} h5 {[%emt 0:01:01]} 39. Kg2 {[%emt 0:00:44]} hxg4 {[%emt 0:00:47]} 40. Kg3 {[%emt 0:00:01]} Re3+ {[%emt 0:01:24]} 41. Kg2 {[%emt 0:00:15]} Nf4+ {[%emt 0:00:16]} 42. Kf2 {[%emt 0:00:13]} Rxe5 0-1

[Event "7th Iberoamerican-ch 2019"]
[Site "Linares"]
[Date "2019.08.12"]
[Round "3.34"]
[White "Serarols Mabras, Bernat"]
[Black "Riquelme Valero, Manuel Damian"]
[Result "1-0"]
[ECO "A80"]
[WhiteElo "2381"]
[BlackElo "2157"]
[Annotator "NA"]
[PlyCount "65"]
[EventDate "2019.08.10"]
[EventType "swiss"]
[EventCountry "ESP"]
[SourceTitle "playchess.com"]
[Source "ChessBase"]
[SourceQuality "1"]
[TimeControl "5400+30"]

1. d4 {[%emt 0:00:00]} f5 {[%emt 0:00:00]} 2. Nc3 {[%emt 0:00:00]} Nf6 {[%emt 0:00:10]} 3. Bg5 {[%emt 0:00:00]} d5 {[%emt 0:00:38]} 4. Bxf6 {[%emt 0:00:04]} exf6 {[%emt 0:00:06]} 5. e3 {[%emt 0:00:09]} Be6 {[%emt 0:00:42]} 6. Qf3 {[%emt 0:00:13]} Qd7 {[%emt 0:02:30]} 7. Bb5 {[%emt 0:00:09]} Nc6 {[%emt 0:07:06]} 8. Nge2 {[%emt 0:00:35]} O-O-O {[%emt 0:00:50]} 9. Nf4 {[%emt 0:02:18]} Bf7 {[%emt 0:00:32]} 10. Nd3 {[%emt 0:00:19]} g6 {[%emt 0:01:20]} 11. a3 {[%emt 0:05:17]} Kb8 {[%emt 0:06:26]} 12. Nb4 {[%emt 0:06:49]} Bxb4 {[%emt 0:01:02]} 13. axb4 {[%emt 0:00:10]} Qe6 {[%emt 0:01:09]} 14. Bxc6 {[%emt 0:04:58]} Qxc6 {[%emt 0:00:37]} 15. O-O {[%emt 0:03:36]} Qb6 {[%emt 0:17:23]} 16. b5 {[%emt 0:17:40]} Be8 {[%emt 0:08:00]} 17. Qe2 {[%emt 0:05:44]} Rd6 {[%emt 0:09:52]} 18. Ra3 {[%emt 0:03:01]} Bd7 {[%emt 0:02:26]} 19. Rfa1 {[%emt 0:08:21]} Re8 {[%emt 0:04:11]} 20. Rb3 {[%emt 0:09:42]} f4 {[%emt 0:01:13]} 21. Qf3 {[%emt 0:00:20]} fxe3 {[%emt 0:02:12]} 22. fxe3 {[%emt 0:00:21]} Rde6 {[%emt 0:09:56]} 23. Nxd5 {[%emt 0:02:41]} Qd6 {[%emt 0:00:14]} 24. c4 {[%emt 0:08:50]} c6 {[%emt 0:01:10]} 25. Nf4 {[%emt 0:04:04]} Re4 {[%emt 0:00:48]} 26. bxc6 {[%emt 0:04:46]} Bxc6 {[%emt 0:02:45]} 27. c5 {[%emt 0:01:32]} Qe7 {[%emt 0:04:42]} 28. d5 {[%emt 0:01:29]} Ba4 {[%emt 0:03:32]} 29. Rc3 {[%emt 0:02:01]} Qe5 {[%emt 0:02:00]} 30. c6 {[%emt 0:01:28]} g5 {[%emt 0:04:30]} 31. Nd3 {[%emt 0:02:16]} Qxd5 {[%emt 0:02:11]} 32. c7+ {[%emt 0:01:06]} Kc8 {[%emt 0:00:23]} 33. Rxa4 {[%emt 0:00:51]} 1-0

[Event "7th Iberoamerican-ch 2019"]
[Site "Linares"]
[Date "2019.08.12"]
[Round "3.35"]
[White "Luque Saiz, Andres"]
[Black "Garcia Martin, Marta"]
[Result "1/2-1/2"]
[ECO "C55"]
[WhiteElo "1988"]
[BlackElo "2335"]
[Annotator "NA"]
[PlyCount "114"]
[EventDate "2019.08.10"]
[EventType "swiss"]
[EventCountry "ESP"]
[SourceTitle "playchess.com"]
[Source "ChessBase"]
[SourceQuality "1"]
[TimeControl "5400+30"]

1. e4 {[%emt 0:00:00]} e5 {[%emt 0:00:00]} 2. Nf3 {[%emt 0:00:00]} Nc6 {[%emt 0:00:00]} 3. Bc4 {[%emt 0:00:11]} Nf6 {[%emt 0:00:00]} 4. d3 {[%emt 0:00:15]} h6 {[%emt 0:03:22]} 5. Nbd2 {[%emt 0:03:52]} d6 {[%emt 0:00:33]} 6. O-O {[%emt 0:03:26]} g6 {[%emt 0:02:30]} 7. c3 {[%emt 0:05:08]} Bg7 {[%emt 0:00:15]} 8. Re1 {[%emt 0:01:34]} O-O {[%emt 0:00:36]} 9. Bb3 {[%emt 0:01:12]} Re8 {[%emt 0:18:12]} 10. Nf1 {[%emt 0:10:49]} Be6 {[%emt 0:08:04]} 11. Ng3 {[%emt 0:03:46]} d5 {[%emt 0:02:25]} 12. d4 {[%emt 0:17:10]} dxe4 {[%emt 0:28:30]} 13. Nxe5 {[%emt 0:01:43]} Nxe5 {[%emt 0:00:05]} 14. dxe5 {[%emt 0:00:09]} Nd7 {[%emt 0:10:34]} 15. Nxe4 {[%emt 0:10:06]} Nxe5 {[%emt 0:01:33]} 16. Bxe6 {[%emt 0:07:38]} Rxe6 {[%emt 0:00:33]} 17. Nc5 {[%emt 0:00:37]} Re8 {[%emt 0:07:41]} 18. Bf4 {[%emt 0:12:01]} b6 {[%emt 0:01:03]} 19. Bxe5 {[%emt 0:00:27]} Qxd1 {[%emt 0:05:40]} 20. Raxd1 {[%emt 0:03:39]} Bxe5 {[%emt 0:00:10]} 21. Nd3 {[%emt 0:00:51]} Bd6 {[%emt 0:00:07]} 22. Kf1 {[%emt 0:00:58]} a5 {[%emt 0:00:59]} 23. a4 {[%emt 0:02:01]} h5 {[%emt 0:00:14]} 24. h3 {[%emt 0:01:34]} Kf8 {[%emt 0:03:23]} 25. Rxe8+ {[%emt 0:03:08]} Rxe8 {[%emt 0:00:06]} 26. Re1 {[%emt 0:00:17]} Rd8 {[%emt 0:00:26]} 27. Ne5 {[%emt 0:01:14]} Bc5 {[%emt 0:02:28]} 28. Ke2 {[%emt 0:01:43]} Kg7 {[%emt 0:01:35]} 29. Nd3 {[%emt 0:00:38]} Be7 {[%emt 0:01:24]} 30. Rd1 {[%emt 0:02:07]} Bh4 {[%emt 0:00:29]} 31. g3 {[%emt 0:01:53]} Bf6 {[%emt 0:00:32]} 32. Nf4 {[%emt 0:01:34]} Rc8 {[%emt 0:01:54]} 33. Nd5 {[%emt 0:01:12]} Re8+ {[%emt 0:00:29]} 34. Kf3 {[%emt 0:00:39]} Be5 {[%emt 0:00:33]} 35. Re1 {[%emt 0:00:25]} Re6 {[%emt 0:00:16]} 36. Nf4 {[%emt 0:00:30]} Re7 {[%emt 0:00:25]} 37. Nd3 {[%emt 0:00:12]} Kf6 {[%emt 0:00:40]} 38. Nxe5 {[%emt 0:02:11]} Rxe5 {[%emt 0:00:04]} 39. Rd1 {[%emt 0:01:54]} Ke7 {[%emt 0:00:13]} 40. h4 {[%emt 0:00:20]} b5 {[%emt 0:01:14]} 41. Rd4 {[%emt 0:00:50]} bxa4 {[%emt 0:00:34]} 42. Rxa4 {[%emt 0:00:12]} Rb5 {[%emt 0:00:16]} 43. b4 {[%emt 0:00:22]} axb4 {[%emt 0:00:07]} 44. Rxb4 {[%emt 0:00:31]} Rc5 {[%emt 0:00:52]} 45. Re4+ {[%emt 0:00:50]} Kd6 {[%emt 0:00:19]} 46. Re3 {[%emt 0:00:28]} Rf5+ {[%emt 0:00:57]} 47. Ke2 {[%emt 0:00:07]} Kd5 {[%emt 0:00:30]} 48. f4 {[%emt 0:00:38]} Kc4 {[%emt 0:00:07]} 49. Kd2 {[%emt 0:00:06]} c5 {[%emt 0:00:53]} 50. Kc2 {[%emt 0:01:02]} Kd5 {[%emt 0:00:27]} 51. Re8 {[%emt 0:00:33]} Rf6 {[%emt 0:00:29]} 52. Kd3 {[%emt 0:00:19]} c4+ {[%emt 0:00:23]} 53. Ke3 {[%emt 0:00:12]} Ra6 {[%emt 0:00:45]} 54. Rd8+ {[%emt 0:00:16]} Kc5 {[%emt 0:00:19]} 55. Rc8+ {[%emt 0:00:06]} Kd5 {[%emt 0:00:33]} 56. Rd8+ {[%emt 0:00:05]} Kc5 {[%emt 0:00:31]} 57. Rc8+ {[%emt 0:00:05]} Kd5 {Kd4+} 1/2-1/2

[Event "7th Iberoamerican-ch 2019"]
[Site "Linares"]
[Date "2019.08.12"]
[Round "3.36"]
[White "Esquivias Quintero, Luis Manuel"]
[Black "Ingunza Curro, Andres"]
[Result "1-0"]
[ECO "A14"]
[WhiteElo "2275"]
[BlackElo "2131"]
[Annotator "NA"]
[PlyCount "131"]
[EventDate "2019.08.10"]
[EventType "swiss"]
[EventCountry "ESP"]
[SourceTitle "playchess.com"]
[Source "ChessBase"]
[SourceQuality "1"]
[TimeControl "5400+30"]

1. Nf3 {[%emt 0:00:00]} Nf6 {[%emt 0:00:00]} 2. c4 {[%emt 0:00:00]} e6 {[%emt 0:00:00]} 3. g3 {[%emt 0:01:30]} d5 {[%emt 0:00:04]} 4. Bg2 {[%emt 0:00:05]} Be7 {[%emt 0:00:04]} 5. O-O {[%emt 0:01:01]} O-O {[%emt 0:00:03]} 6. b3 {[%emt 0:00:04]} a5 {[%emt 0:00:15]} 7. a3 {[%emt 0:01:44]} a4 {[%emt 0:00:33]} 8. b4 {[%emt 0:08:24]} dxc4 {[%emt 0:01:52]} 9. Qc2 {[%emt 0:01:00]} b5 {[%emt 0:01:21]} 10. Bb2 {[%emt 0:03:19]} Bb7 {[%emt 0:06:33]} 11. Nc3 {[%emt 0:03:09]} c6 {[%emt 0:12:36]} 12. Rfd1 {[%emt 0:04:28]} Na6 {[%emt 0:05:01]} 13. Rac1 {[%emt 0:09:03]} Qb6 {[%emt 0:17:55]} 14. Ng5 {[%emt 0:04:54]} h6 {[%emt 0:05:08]} 15. Nxa4 {[%emt 0:04:13]} Qd8 {[%emt 0:03:32]} 16. Bxf6 {[%emt 0:00:24]} hxg5 {[%emt 0:00:01]} 17. Bxe7 {[%emt 0:00:07]} Qxe7 {[%emt 0:00:02]} 18. Nc3 {[%emt 0:00:22]} Nc7 {[%emt 0:01:41]} 19. Qb2 {[%emt 0:01:20]} f5 {[%emt 0:02:05]} 20. d3 {[%emt 0:01:39]} cxd3 {[%emt 0:01:11]} 21. Rxd3 {[%emt 0:01:25]} Rfd8 {[%emt 0:01:07]} 22. Rcd1 {[%emt 0:01:50]} Ne8 {[%emt 0:23:04]} 23. Qb3 {[%emt 0:18:24]} Nd6 {[%emt 0:05:32]} 24. a4 {[%emt 0:00:54]} bxa4 {[%emt 0:00:33]} 25. Nxa4 {[%emt 0:00:24]} Ba6 {[%emt 0:00:40]} 26. Re3 {[%emt 0:06:29]} Nc4 {[%emt 0:03:22]} 27. Rxd8+ {[%emt 0:03:15]} Rxd8 {[%emt 0:00:20]} 28. Rd3 {[%emt 0:00:29]} Bb5 {[%emt 0:05:33]} 29. Nc5 {[%emt 0:03:31]} Rd6 {[%emt 0:01:00]} 30. Qc3 {[%emt 0:03:44]} e5 {[%emt 0:02:08]} 31. e3 {[%emt 0:09:30]} e4 {[%emt 0:00:39]} 32. Rd4 {[%emt 0:00:21]} Qe5 {[%emt 0:00:47]} 33. Nb3 {[%emt 0:02:58]} Rxd4 {[%emt 0:01:03]} 34. Nxd4 {[%emt 0:01:06]} Qd5 {[%emt 0:00:35]} 35. Qa1 {[%emt 0:00:23]} Kh7 {[%emt 0:00:31]} 36. Qa8 {[%emt 0:01:04]} Ne5 {[%emt 0:00:25]} 37. Qf8 {[%emt 0:00:37]} Nf7 {[%emt 0:00:19]} 38. h3 {[%emt 0:02:32]} Bc4 {[%emt 0:00:41]} 39. Qc8 {[%emt 0:00:41]} Nd6 40. Qxc6 {[%emt 0:00:12]} Qe5 {[%emt 0:00:51]} 41. Qc5 {[%emt 0:01:59]} Qf6 {[%emt 0:00:18]} 42. Nxf5 {[%emt 0:01:01]} Qxf5 {[%emt 0:00:48]} 43. Qxd6 {[%emt 0:00:03]} Bd3 {[%emt 0:00:02]} 44. Qd4 {[%emt 0:00:16]} g4 {[%emt 0:00:15]} 45. h4 {[%emt 0:00:22]} g6 {[%emt 0:00:14]} 46. Qa7+ {[%emt 0:00:09]} Kg8 {[%emt 0:00:26]} 47. Qb8+ {[%emt 0:00:04]} Kf7 {[%emt 0:01:13]} 48. Qf4 {[%emt 0:00:17]} Ke6 49. Qc7 {[%emt 0:02:47]} Qd5 {[%emt 0:01:15]} 50. Qf4 {[%emt 0:00:13]} Qf5 {[%emt 0:00:03]} 51. Qh6 {[%emt 0:00:16]} Qf6 {[%emt 0:00:46]} 52. h5 {[%emt 0:00:40]} gxh5 {[%emt 0:00:32]} 53. Qxh5 {[%emt 0:00:04]} Qf5 {[%emt 0:00:16]} 54. Qe8+ {[%emt 0:00:14]} Kd6 {[%emt 0:00:21]} 55. b5 {[%emt 0:01:11]} Bxb5 {[%emt 0:01:07]} 56. Qxe4 {[%emt 0:00:24]} Qg5 {[%emt 0:00:43]} 57. Qf4+ {[%emt 0:00:32]} Qxf4 {[%emt 0:00:03]} 58. gxf4 {[%emt 0:00:02]} Be2 {[%emt 0:00:14]} 59. Kh2 {[%emt 0:00:08]} Ke6 {[%emt 0:00:07]} 60. Kg3 {[%emt 0:00:03]} Kf6 {[%emt 0:00:17]} 61. Bb7 {[%emt 0:00:08]} Kg6 {[%emt 0:00:27]} 62. Bc8 {[%emt 0:00:04]} Kh5 {[%emt 0:00:03]} 63. e4 {[%emt 0:00:04]} Bd1 {[%emt 0:00:14]} 64. Bf5 {[%emt 0:00:09]} Bf3 {[%emt 0:00:24]} 65. e5 {[%emt 0:00:10]} Kh6 {[%emt 0:00:13]} 66. Bxg4 {[%emt 0:00:06]} 1-0

[Event "7th Iberoamerican-ch 2019"]
[Site "Linares"]
[Date "2019.08.12"]
[Round "3.39"]
[White "Almagro Mazariegos, Sebastian"]
[Black "Gines Abad, Pedro"]
[Result "1-0"]
[ECO "B10"]
[WhiteElo "2268"]
[BlackElo "1964"]
[Annotator "NA"]
[PlyCount "49"]
[EventDate "2019.08.10"]
[EventType "swiss"]
[EventCountry "ESP"]
[SourceTitle "playchess.com"]
[Source "ChessBase"]
[SourceQuality "1"]
[TimeControl "5400+30"]

1. e4 {[%emt 0:00:00]} c6 {[%emt 0:00:43]} 2. c4 {[%emt 0:00:00]} d5 {[%emt 0:00:46]} 3. cxd5 {[%emt 0:00:00]} cxd5 {[%emt 0:00:10]} 4. exd5 {[%emt 0:00:00]} Nf6 {[%emt 0:00:44]} 5. Nc3 {[%emt 0:00:04]} Nxd5 {[%emt 0:00:27]} 6. Nf3 {[%emt 0:00:08]} g6 {[%emt 0:03:46]} 7. Bc4 {[%emt 0:08:15]} Nxc3 {[%emt 0:06:47]} 8. Qb3 {[%emt 0:05:00]} e6 {[%emt 0:10:48]} 9. Qxc3 {[%emt 0:02:43]} Rg8 {[%emt 0:00:14]} 10. d4 {[%emt 0:01:41]} Nc6 {[%emt 0:00:47]} 11. O-O {[%emt 0:00:10]} Bg7 {[%emt 0:03:01]} 12. Be3 {[%emt 0:03:47]} Bd7 {[%emt 0:09:55]} 13. Qd2 {[%emt 0:05:21]} Qa5 {[%emt 0:05:20]} 14. Qe2 {[%emt 0:01:50]} Ne7 {[%emt 0:02:16]} 15. Bg5 {[%emt 0:17:45]} h6 {[%emt 0:18:54]} 16. Bxe7 {[%emt 0:01:45]} Kxe7 {[%emt 0:00:10]} 17. d5 {[%emt 0:00:21]} Rge8 {[%emt 0:02:01]} 18. Ne5 {[%emt 0:03:42]} Bc8 {[%emt 0:03:07]} 19. Rfe1 {[%emt 0:31:16]} Kf8 {[%emt 0:06:23]} 20. Qf3 {[%emt 0:02:07]} Bxe5 {[%emt 0:03:22]} 21. Rxe5 {[%emt 0:00:04]} exd5 {[%emt 0:08:52]} 22. Rxe8+ {[%emt 0:02:55]} Kxe8 {[%emt 0:00:03]} 23. Bxd5 {[%emt 0:00:21]} Bf5 {[%emt 0:02:34]} 24. Bxf7+ {[%emt 0:01:02]} Kd8 {[%emt 0:03:51]} 25. Qxb7 {[%emt 0:00:35]} 1-0